[Event "Frauenbundesliga 2024-25"]
[Site "Germany"]
[Date "2024.11.16"]
[Round "1.1"]
[White "Reizniece-Ozola, Dana"]
[Black "Javakhishvili, Lela"]
[Result "0-1"]
[Annotator "RC"]
[ECO "A30"]
[WhiteElo "2255"]
[BlackElo "2422"]
[PlyCount "114"]
[EventDate "2024.11.06"]
[EventType "team-tourn"]
[EventCountry "GER"]
[SourceTitle "playchess.com"]
[Source "ChessBase"]
[SourceQuality "1"]
[TimeControl "40/5400+30:1800+30"]

1. c4 {[%emt 0:00:01]} c5 {[%emt 0:00:25]} 2. Nf3 {[%emt 0:00:13]} Nc6 {[%emt 0:00:23]} 3. d4 {[%emt 0:00:13]} cxd4 {[%emt 0:00:06]} 4. Nxd4 {[%emt 0:00:03]} e5 {[%emt 0:00:26]} 5. Nb5 {[%emt 0:01:38]} d6 {[%emt 0:00:07]} 6. N1c3 {[%emt 0:00:34]} a6 {[%emt 0:00:13]} 7. Na3 {[%emt 0:00:05]} f5 {[%emt 0:01:58]} 8. Nd5 {[%emt 0:05:13]} Nf6 {[%emt 0:04:09]} 9. Bg5 {[%emt 0:07:11]} Be6 {[%emt 0:07:39]} 10. Bxf6 {[%emt 0:11:01]} gxf6 {[%emt 0:00:09]} 11. Qd2 {[%emt 0:05:26]} Rc8 {[%emt 0:04:13]} 12. Rc1 {[%emt 0:11:03]} f4 {[%emt 0:08:42]} 13. g3 {[%emt 0:10:17]} fxg3 {[%emt 0:07:30]} 14. hxg3 {[%emt 0:00:38]} Bg7 {[%emt 0:00:20]} 15. Bg2 {[%emt 0:02:25]} f5 {[%emt 0:01:10]} 16. Rd1 {[%emt 0:11:07]} O-O {[%emt 0:02:51]} 17. Nc3 {[%emt 0:03:20]} e4 {[%emt 0:06:08]} 18. g4 {[%emt 0:07:49]} Qb6 {[%emt 0:11:56]} 19. gxf5 {[%emt 0:03:08]} Bxf5 {[%emt 0:02:09]} 20. Qd5+ {[%emt 0:12:46]} Kh8 {[%emt 0:01:16]} 21. Bxe4 {[%emt 0:01:54]} Qxf2+ {[%emt 0:26:55]} 22. Kxf2 {[%emt 0:00:16]} Bxe4+ {[%emt 0:00:03]} 23. Ke3 {[%emt 0:00:59]} Bxd5 {[%emt 0:00:06]} 24. Rxd5 {[%emt 0:02:39]} Be5 {[%emt 0:00:04]} 25. Rdd1 {[%emt 0:01:50]} Bf4+ {[%emt 0:01:35]} 26. Kd3 {[%emt 0:00:56]} Nb4+ {[%emt 0:00:46]} 27. Kd4 {[%emt 0:00:17]} Be5+ {[%emt 0:04:42]} 28. Ke3 {[%emt 0:00:01]} Bf4+ {[%emt 0:01:34]} 29. Kd4 {[%emt 0:00:03]} Be5+ {[%emt 0:03:01]} 30. Ke3 {[%emt 0:00:01]} Rce8 {[%emt 0:00:05]} 31. Kd2 {[%emt 0:00:23]} Rf2 {[%emt 0:01:10]} 32. Rdf1 {[%emt 0:01:29]} Rxf1 {[%emt 0:01:01]} 33. Rxf1 {[%emt 0:00:01]} Kg7 {[%emt 0:00:14]} 34. Rg1+ {[%emt 0:01:32]} Kf7 {[%emt 0:00:04]} 35. Rf1+ {[%emt 0:00:06]} Ke6 {[%emt 0:00:25]} 36. Rh1 {[%emt 0:00:05]} Rh8 {[%emt 0:00:12]} 37. Rh5 {[%emt 0:00:47]} Kf7 {[%emt 0:00:24]} 38. Nc2 {[%emt 0:00:29]} Nxc2 {[%emt 0:00:26]} 39. Kxc2 {[%emt 0:00:01]} Kg6 {[%emt 0:00:08]} 40. Rh1 {[%emt 0:00:19]} h5 {[%emt 0:01:40]} 41. Kd3 {[%emt 0:08:11]} h4 {[%emt 0:11:55]} 42. Ke4 {[%emt 0:13:50]} h3 {[%emt 0:01:49]} 43. Nd1 {[%emt 0:03:29]} h2 {[%emt 0:01:12]} 44. Kf3 {[%emt 0:03:57]} Kg5 {[%emt 0:00:33]} 45. Kg2 {[%emt 0:00:31]} Rh4 {[%emt 0:03:56]} 46. b3 {[%emt 0:00:38]} Rg4+ {[%emt 0:00:55]} 47. Kf1 {[%emt 0:02:35]} Kh4 {[%emt 0:00:36]} 48. Nf2 {[%emt 0:02:22]} Rg8 {[%emt 0:01:16]} 49. Ne4 {[%emt 0:00:14]} b5 {[%emt 0:01:09]} 50. cxb5 {[%emt 0:00:27]} axb5 {[%emt 0:00:09]} 51. a4 {[%emt 0:00:46]} b4 {[%emt 0:02:08]} 52. Nd2 {[%emt 0:00:14]} Kh3 {[%emt 0:01:06]} 53. Nf3 {[%emt 0:00:45]} Rf8 {[%emt 0:01:58]} 54. Kf2 {[%emt 0:00:30]} Bg3+ {[%emt 0:00:07]} 55. Kf1 {[%emt 0:00:06]} d5 {[%emt 0:00:22]} 56. a5 {[%emt 0:00:12]} d4 {[%emt 0:00:17]} 57. a6 {[%emt 0:00:39]} d3 {[%emt 0:00:05]} 0-1

[Event "Frauenbundesliga 2024-25"]
[Site "Germany"]
[Date "2024.11.16"]
[Round "1.1"]
[White "Butenandt, Svenja"]
[Black "Antolak, Julia"]
[Result "1-0"]
[Annotator "RC"]
[ECO "D31"]
[WhiteElo "2122"]
[BlackElo "2312"]
[PlyCount "93"]
[EventDate "2024.11.06"]
[EventType "team-tourn"]
[EventCountry "GER"]
[SourceTitle "playchess.com"]
[Source "ChessBase"]
[SourceQuality "1"]
[TimeControl "40/5400+30:1800+30"]

1. d4 {[%emt 0:00:03]} d5 {[%emt 0:00:12]} 2. c4 {[%emt 0:00:05]} e6 {[%emt 0:00:06]} 3. Nc3 {[%emt 0:00:04]} c6 {[%emt 0:00:04]} 4. e4 {[%emt 0:00:42]} dxe4 {[%emt 0:00:17]} 5. Nxe4 {[%emt 0:00:05]} Bb4+ {[%emt 0:00:06]} 6. Bd2 {[%emt 0:00:04]} Qxd4 {[%emt 0:00:24]} 7. Bxb4 {[%emt 0:00:07]} Qxe4+ {[%emt 0:00:05]} 8. Be2 {[%emt 0:00:05]} Na6 {[%emt 0:00:47]} 9. Ba5 {[%emt 0:00:24]} b6 {[%emt 0:00:28]} 10. Qd6 {[%emt 0:01:12]} Bd7 {[%emt 0:00:17]} 11. Bc3 {[%emt 0:01:24]} f6 {[%emt 0:00:58]} 12. Nf3 {[%emt 0:02:33]} Nh6 {[%emt 0:01:21]} 13. O-O-O {[%emt 0:09:41]} O-O-O {[%emt 0:03:20]} 14. Rhe1 {[%emt 0:15:12]} Nc5 {[%emt 0:10:09]} 15. Bf1 {[%emt 0:40:07]} Qg6 {[%emt 0:07:03]} 16. Ne5 {[%emt 0:08:00]} fxe5 {[%emt 0:23:26]} 17. Bxe5 {[%emt 0:00:02]} Kb7 {[%emt 0:00:07]} 18. b4 {[%emt 0:01:16]} Na6 {[%emt 0:01:08]} 19. c5 {[%emt 0:03:27]} Nxb4 {[%emt 0:13:31]} 20. Bd3 {[%emt 0:03:42]} Qg5+ {[%emt 0:02:22]} 21. f4 {[%emt 0:00:22]} Qxg2 {[%emt 0:01:30]} 22. cxb6 {[%emt 0:02:15]} Nd5 {[%emt 0:08:08]} 23. Re2 {[%emt 0:07:44]} Qxe2 {[%emt 0:09:41]} 24. Bxe2 {[%emt 0:00:03]} Nf7 {[%emt 0:00:11]} 25. Qa3 {[%emt 0:00:47]} a5 {[%emt 0:00:18]} 26. Bc7 {[%emt 0:01:41]} Rde8 {[%emt 0:01:41]} 27. Rd4 {[%emt 0:01:35]} g6 {[%emt 0:03:37]} 28. Ra4 {[%emt 0:00:53]} Ra8 {[%emt 0:00:51]} 29. Rd4 {[%emt 0:00:40]} Rhe8 {[%emt 0:00:30]} 30. Bf3 {[%emt 0:00:30]} Bc8 {[%emt 0:02:12]} 31. Qc5 {[%emt 0:00:24]} a4 {[%emt 0:02:55]} 32. a3 {[%emt 0:00:34]} Bd7 {[%emt 0:00:36]} 33. Be4 {[%emt 0:00:22]} g5 {[%emt 0:01:43]} 34. f5 {[%emt 0:00:42]} Ra6 {[%emt 0:02:05]} 35. fxe6 {[%emt 0:00:27]} Bxe6 {[%emt 0:00:08]} 36. Bxd5 {[%emt 0:00:12]} cxd5 {[%emt 0:00:50]} 37. Bd8 {[%emt 0:00:27]} Nxd8 {[%emt 0:01:15]} 38. Qc7+ {[%emt 0:00:17]} Ka8 {[%emt 0:00:01]} 39. Kd2 {[%emt 0:01:13]} Ra5 {[%emt 0:02:57]} 40. Rb4 {[%emt 0:00:29]} Nb7 {[%emt 0:02:35]} 41. Qc6 {[%emt 0:02:42]} Re7 {[%emt 0:08:57]} 42. Rxa4 {[%emt 0:00:28]} Kb8 {[%emt 0:00:28]} 43. Rxa5 {[%emt 0:00:45]} Nxa5 {[%emt 0:00:22]} 44. Qd6+ {[%emt 0:00:10]} Kc8 {[%emt 0:00:15]} 45. Qxe7 {[%emt 0:00:07]} Nc4+ {[%emt 0:00:52]} 46. Kc3 {[%emt 0:00:12]} Bd7 {[%emt 0:00:19]} 47. Qc5+ {[%emt 0:00:23]} 1-0

[Event "Frauenbundesliga 2024-25"]
[Site "Germany"]
[Date "2024.11.16"]
[Round "1.2"]
[White "Bulmaga, Irina"]
[Black "Rogule, Laura"]
[Result "1-0"]
[Annotator "TA"]
[ECO "B28"]
[WhiteElo "2401"]
[BlackElo "2247"]
[PlyCount "69"]
[EventDate "2024.11.06"]
[EventType "team-tourn"]
[EventCountry "GER"]
[SourceTitle "playchess.com"]
[Source "ChessBase"]
[SourceQuality "1"]
[TimeControl "40/5400+30:1800+30"]

{[%evp 13,69,22,23,21,28,37,26,42,29,20,23,14,41,46,46,29,32,29,28,0,0,0,0,0,156,156,216,208,171,189,224,227,218,216,484,483,500,452,443,473,481,477,483,490,581,581,638,633,2243,577,29988,29989,29989,566,29990,29991,29991,853]} 1. e4 {[%emt 0:00:04]} c5 {[%emt 0:00:37]} 2. Nf3 {[%emt 0:00:08]} a6 {[%emt 0:07:48]} 3. c3 {[%emt 0:00:27]} d5 {[%emt 0:00:32]} 4. exd5 {[%emt 0:00:29]} Qxd5 {[%emt 0:00:12]} 5. d4 {[%emt 0:00:39]} Nf6 {[%emt 0:05:50]} 6. Be2 {[%emt 0:01:06]} e6 {[%emt 0:00:52]} 7. O-O {[%emt 0:05:12]} Nc6 {[%emt 0:03:37]} 8. Bf4 {[%emt 0:03:25]} Be7 {[%emt 0:05:11]} 9. Ne5 {[%emt 0:02:46]} Nxe5 {[%emt 0:04:20]} 10. Bxe5 {[%emt 0:00:23]} cxd4 {[%emt 0:02:44]} 11. cxd4 {[%emt 0:01:08]} O-O {[%emt 0:00:50]} 12. Nc3 {[%emt 0:00:17]} Qa5 {[%emt 0:11:18]} 13. Bf3 {[%emt 0:04:53][%cal Be2f3,Bf3d5,Bd5e6][%mdl 32]} Ra7 {[%emt 0:11:48]} 14. a3 {[%emt 0:12:43]} b5 {[%emt 0:04:35]} 15. d5 {[%emt 0:07:54] and d6 should not be overlooked} Rd7 {[%emt 0:04:07]} 16. Qb3 {[%emt 0:07:07]} exd5 {[%emt 0:02:31]} 17. Nxd5 {[%emt 0:10:38]} Nxd5 {[%emt 0:02:25]} 18. Bxd5 {[%emt 0:00:07]} Bb7 $2 {[%emt 0:07:25] [#] Inhibits Bc6.} (18... Qb6 $11) 19. Be6 $1 $16 {[%emt 0:05:00] White is more active.} Rdd8 {[%emt 0:06:05] [#]} (19... Bf6 $16) 20. Qg3 $1 $40 {[%emt 0:00:51][%csl Ge5][%cal Rg3g7][%mdl 128] Black is in trouble.} g6 {[%emt 0:00:11]} 21. Bc7 {[%emt 0:01:20]} Qd2 {[%emt 0:02:19]} 22. Bxd8 {[%emt 0:01:33]} Bxd8 {[%emt 0:09:01]} 23. Rad1 {[%emt 0:01:36]} Qxb2 $2 {[%emt 0:01:06] [#]} (23... Qg5 {might work better.}) 24. Bxf7+ $1 {[%emt 0:01:18][%mdl 512]} Kh8 {[%emt 0:03:06] [#]} (24... Rxf7 25. Rxd8+) 25. Rxd8 $1 {[%emt 0:07:00]} Rxd8 {[%emt 0:00:16]} 26. Qc7 $1 {[%emt 0:00:09][%csl LRb7,LRd8]} Rf8 {[%emt 0:00:36]} 27. Qxb7 {[%emt 0:00:09]} Qxa3 {[%emt 0:00:12]} 28. Bd5 {[%emt 0:02:03]} Qc5 {[%emt 0:02:06]} 29. h4 {[%emt 0:00:29]} Qd4 {[%emt 0:02:26]} 30. Qe7 {[%emt 0:05:33]} Rf5 {[%emt 0:00:32]} 31. Be6 {[%emt 0:02:58]} (31. Bf7 $142 {[%cal Re7f8]} Qc5 32. Qe8+ Kg7 33. Qg8+ Kf6 34. Be6 (34. Qxh7 Re5 $18)) 31... Rf6 {[%emt 0:00:35]} 32. Qe8+ {[%emt 0:01:38]} Kg7 {[%emt 0:00:05]} 33. Qg8+ {[%emt 0:00:17]} Kh6 {[%emt 0:00:03]} 34. g4 {[%emt 0:00:18]} Rxe6 {[%emt 0:01:20]} 35. Qf8+ {[%emt 0:00:12]} 1-0

[Event "Frauenbundesliga 2024-25"]
[Site "Germany"]
[Date "2024.11.16"]
[Round "1.2"]
[White "Schulze, Lara"]
[Black "Gueci, Tea"]
[Result "1/2-1/2"]
[Annotator "RC"]
[ECO "B26"]
[WhiteElo "2275"]
[BlackElo "2167"]
[PlyCount "54"]
[EventDate "2024.11.06"]
[EventType "team-tourn"]
[EventCountry "GER"]
[SourceTitle "playchess.com"]
[Source "ChessBase"]
[SourceQuality "1"]
[TimeControl "40/5400+30:1800+30"]

1. e4 c5 2. Nc3 Nc6 3. g3 g6 4. Bg2 Bg7 5. d3 d6 6. Be3 Rb8 7. Qd2 b5 8. Nge2 Nd4 9. O-O e6 {[%emt 0:00:00]} 10. Nc1 Ne7 {[%emt 0:00:00]} 11. Nd1 O-O {[%emt 0:00:00]} 12. c3 Ndc6 {[%emt 0:00:00]} 13. Ne2 b4 {[%emt 0:00:00]} 14. f4 Qa5 {[%emt 0:00:00]} 15. h3 f5 {[%emt 0:00:00]} 16. Bf2 bxc3 {[%emt 0:00:00]} 17. bxc3 Nd4 {[%emt 0:00:00]} 18. Rc1 fxe4 {[%emt 0:00:00]} 19. Nxd4 cxd4 {[%emt 0:00:00]} 20. dxe4 e5 {[%emt 0:00:00]} 21. fxe5 dxe5 {[%emt 0:00:00]} 22. Be1 Nc6 {[%emt 0:00:00]} 23. Rxf8+ Bxf8 {[%emt 0:00:00]} 24. Nf2 Be6 {[%emt 0:00:00]} 25. Ng4 Qxa2 {[%emt 0:00:00]} 26. Qxa2 Bxa2 {[%emt 0:00:00]} 27. cxd4 Nxd4 {[%emt 0:00:00]} 1/2-1/2

[Event "Frauenbundesliga 2024-25"]
[Site "Germany"]
[Date "2024.11.16"]
[Round "1.3"]
[White "Berzina, Ilze"]
[Black "Atalik, Ekaterina"]
[Result "1/2-1/2"]
[Annotator "TA"]
[ECO "B11"]
[WhiteElo "2193"]
[BlackElo "2399"]
[PlyCount "131"]
[EventDate "2024.11.06"]
[EventType "team-tourn"]
[EventCountry "GER"]
[SourceTitle "playchess.com"]
[Source "ChessBase"]
[SourceQuality "1"]
[TimeControl "40/5400+30:1800+30"]

{[%evp 33,131,47,42,22,29,0,0,-13,-12,-21,0,0,0,0,0,-7,28,0,0,0,24,0,10,-5,-9,-9,-9,-9,-6,-6,-6,-19,-19,-27,-19,-20,-19,-31,-21,-38,-8,-24,0,-79,-77,-58,0,0,0,-65,0,0,0,-54,-7,-46,-46,-54,-54,-63,0,-51,0,0,-50,-45,-45,-45,-45,-60,-60,-231,-57,-97,-51,-51,-45,-45,-45,-52,-52,-52,0,0,0,-82,-82,-82,-82,-82,0,0,0,0,0,0,0,-70,-70,-70]} 1. e4 {[%emt 0:00:03]} c6 {[%emt 0:00:09]} 2. Nc3 {[%emt 0:00:14]} d5 {[%emt 0:00:13]} 3. Nf3 {[%emt 0:00:18]} Bg4 {[%emt 0:00:27]} 4. h3 {[%emt 0:00:32]} Bxf3 {[%emt 0:00:06]} 5. Qxf3 {[%emt 0:00:09]} e6 {[%emt 0:00:07]} 6. g3 {[%emt 0:04:06]} d4 {[%emt 0:03:20] Recently 6...Nd7 got a lot of attention. B11: Caro-Kann: Two Knights Variation.} 7. Nb1 {[%emt 0:01:23]} Ne7 {[%emt 0:00:31]} 8. d3 {[%emt 0:01:35]} Ng6 {[%emt 0:00:34]} 9. Bg2 {[%emt 0:01:18]} Nd7 {[%emt 0:04:01]} 10. Qe2 {[%emt 0:06:28]} Bb4+ {[%emt 0:06:43]} 11. Nd2 {[%emt 0:02:48]} e5 $146 {[%emt 0:04:27]} ({Predecessor:} 11... O-O 12. O-O f5 13. f4 Kh8 14. a3 Bc5 15. b4 Bb6 16. Kh2 Nf6 17. Nf3 Qc7 {0-1 Makropoulou,M (2272)-Makka,I (2257) GRE-ch (Women) 2002 (3)}) 12. O-O {[%emt 0:01:22]} h5 {[%emt 0:03:04]} 13. f4 {[%emt 0:09:13]} h4 {[%emt 0:12:10]} 14. f5 {[%emt 0:03:07]} Ngf8 {[%emt 0:00:18]} 15. g4 {[%emt 0:02:04]} g5 {[%emt 0:06:45]} 16. Nc4 {[%emt 0:13:59]} b5 {[%emt 0:01:32]} 17. Nd2 {[%emt 0:01:46]} f6 {[%emt 0:01:58]} 18. a3 {[%emt 0:04:33]} Bd6 {[%emt 0:04:38]} 19. Bf3 {[%emt 0:06:23]} Nb6 {[%emt 0:02:07]} 20. Qf2 {[%emt 0:02:46]} Nfd7 {[%emt 0:01:22]} 21. Kg2 {[%emt 0:00:45]} a5 {[%emt 0:02:35]} 22. Be2 {[%emt 0:01:02]} Qe7 {[%emt 0:04:20]} 23. Nf3 {[%emt 0:04:12]} Na4 {[%emt 0:12:55]} 24. Qe1 {[%emt 0:06:17]} Ndb6 {[%emt 0:10:48]} 25. Ra2 {[%emt 0:07:34]} Qf7 {[%emt 0:01:30]} 26. Ra1 {[%emt 0:00:33]} Kd7 {[%emt 0:00:45]} 27. Bd1 {[%emt 0:04:44]} Kc7 {[%emt 0:05:56]} 28. Rf2 {[%emt 0:01:13]} Nc5 {[%emt 0:01:33]} 29. Bd2 {[%emt 0:00:33]} a4 {[%emt 0:00:46]} 30. Be2 {[%emt 0:01:14]} Kb7 {[%emt 0:00:12]} 31. Rf1 {[%emt 0:01:52]} Na6 {[%emt 0:00:39]} 32. Rb1 {[%emt 0:01:07]} Rhd8 {[%emt 0:01:50]} 33. Bd1 {[%emt 0:03:00]} Be7 {[%emt 0:01:39]} 34. Ba5 {[%emt 0:00:57]} Qf8 {[%emt 0:01:58]} 35. Rf2 {[%emt 0:01:43]} Ka7 {[%emt 0:00:44]} 36. b3 {[%emt 0:00:58]} axb3 {[%emt 0:00:27]} 37. cxb3 {[%emt 0:00:17]} Nc5 {[%emt 0:01:06]} (37... Bxa3 $5 38. b4 $8 Kb7 $16) 38. Qd2 {[%emt 0:01:18]} (38. Bc2 $11) 38... Nb7 $17 {[%emt 0:00:04]} 39. b4 {[%emt 0:00:25]} Rdb8 {[%emt 0:01:15]} (39... Nxa5 $15 40. bxa5 Nd7) 40. Bxb6+ {[%emt 0:01:58]} Kxb6 {[%emt 0:00:04]} 41. Qb2 {[%emt 0:08:50]} (41. Qc1 $11) 41... Qe8 {[%emt 0:03:45]} (41... Ra7 $15) 42. Bb3 $11 {[%emt 0:01:15]} Ra6 {[%emt 0:02:20]} 43. Ne1 {[%emt 0:07:00]} ({Better is} 43. Rc2 $11) 43... Rba8 {[%emt 0:03:52]} (43... Kc7 $15 {should be considered.}) 44. Nc2 {[%emt 0:00:22]} (44. a4 {keeps more tension.} bxa4 45. Bc4 Nd6 46. Bxa6 Rxa6 47. Nc2) 44... Kc7 {[%emt 0:02:07]} 45. Rff1 {[%emt 0:00:41]} Qb8 {[%emt 0:04:52]} 46. Rfc1 {[%emt 0:00:23]} Nd8 {[%emt 0:00:54]} (46... R8a7 $15) 47. Ba2 {[%emt 0:03:57]} (47. Ra1 $11) 47... Qa7 {[%emt 0:01:11]} 48. Ra1 {[%emt 0:01:37]} Rxa3 {[%emt 0:08:05]} 49. Nxa3 {[%emt 0:00:49]} Qxa3 {[%emt 0:00:05]} 50. Qc2 {[%emt 0:01:48]} Qxb4 {[%emt 0:01:02]} 51. Rab1 {[%emt 0:04:53]} Qc3 {[%emt 0:03:00]} 52. Qe2 $2 {[%emt 0:00:09] [#]} (52. Bb3 $15) 52... Qa5 $2 {[%emt 0:01:16]} (52... Rxa2 $1 $19 53. Qxa2 Qxd3) 53. Bg8 {[%emt 0:00:53]} Qb6 {[%emt 0:02:29]} ({Black should try} 53... Bb4 $17 54. Rc2 Nb7) 54. Ra1 $15 {[%emt 0:01:41]} Ra3 {[%emt 0:01:08]} 55. Rxa3 {[%emt 0:01:08]} Bxa3 {[%emt 0:00:04]} 56. Ra1 {[%emt 0:00:46]} Qc5 {[%emt 0:02:04]} 57. Qa2 {[%emt 0:00:50]} b4 {[%emt 0:00:24]} (57... Bb4 $1 $15 58. Qb1 Nb7) 58. Bc4 $11 {[%emt 0:00:39]} Nb7 {[%emt 0:00:07]} 59. Qc2 {[%emt 0:02:21]} (59. Rb1 $11) 59... Na5 $17 {[%emt 0:01:34]} 60. Rb1 {[%emt 0:00:14]} Kd6 {[%emt 0:01:22]} 61. Kf3 {[%emt 0:00:21]} Nb7 {[%emt 0:01:46]} (61... Nxc4 $17 62. dxc4 Kc7) 62. Qa2 {[%emt 0:00:38]} Kc7 {[%emt 0:00:14]} 63. Ke2 {[%emt 0:00:46]} Na5 {[%emt 0:01:31]} 64. Rd1 {[%emt 0:00:26]} Nxc4 {[%emt 0:00:19]} 65. dxc4 {[%emt 0:01:20]} (65. Qxc4 $11 Qxc4 66. dxc4) 65... Qa5 $15 {[%emt 0:00:28]} 66. Qb3 {[%emt 0:00:22]} 1/2-1/2

[Event "Frauenbundesliga 2024-25"]
[Site "Germany"]
[Date "2024.11.16"]
[Round "1.3"]
[White "Khrapko, Marharyta"]
[Black "Lach, Aleksandra"]
[Result "0-1"]
[Annotator "RC"]
[ECO "C02"]
[WhiteElo "2156"]
[BlackElo "2210"]
[PlyCount "114"]
[EventDate "2024.11.06"]
[EventType "team-tourn"]
[EventCountry "GER"]
[SourceTitle "playchess.com"]
[Source "ChessBase"]
[SourceQuality "1"]
[TimeControl "40/5400+30:1800+30"]

1. e4 e6 2. d4 d5 3. e5 c5 4. Nf3 Nc6 5. Bd3 {[%emt 0:02:30]} a6 {[%emt 0:02:30]} 6. O-O {[%emt 0:00:30]} Nxd4 {[%emt 0:00:30]} 7. Nxd4 {[%emt 0:00:30]} cxd4 {[%emt 0:00:30]} 8. Re1 {[%emt 0:00:30]} f6 {[%emt 0:00:30]} 9. Nd2 {[%emt 0:00:30]} fxe5 {[%emt 0:00:30]} 10. Rxe5 {[%emt 0:00:30]} Nf6 {[%emt 0:00:30]} 11. Rg5 {[%emt 0:00:30]} Qc7 {[%emt 0:00:30]} 12. Nf3 {[%emt 0:00:30]} Bd6 {[%emt 0:00:30]} 13. Nxd4 {[%emt 0:00:30]} Bxh2+ {[%emt 0:00:30]} 14. Kh1 {[%emt 0:00:30]} Bf4 {[%emt 0:00:30]} 15. Bxf4 {[%emt 0:00:30]} Qxf4 {[%emt 0:00:30]} 16. Nf3 {[%emt 0:00:30]} O-O {[%emt 0:00:30]} 17. Kg1 {[%emt 0:00:30]} h6 {[%emt 0:00:30]} 18. Rg6 {[%emt 0:00:30]} Ng4 {[%emt 0:00:30]} 19. Be2 {[%emt 0:00:30]} Ne5 {[%emt 0:00:30]} 20. Rg3 {[%emt 0:00:30]} Bd7 {[%emt 0:00:30]} 21. Nxe5 {[%emt 0:00:30]} Qxe5 {[%emt 0:00:30]} 22. c3 {[%emt 0:00:30]} Rf4 {[%emt 0:00:30]} 23. Bf3 {[%emt 0:00:30]} Be8 {[%emt 0:00:30]} 24. Qd2 {[%emt 0:00:30]} Bf7 {[%emt 0:00:30]} 25. Re1 {[%emt 0:00:30]} Qf6 {[%emt 0:00:30]} 26. Re2 {[%emt 0:00:30]} Rd8 {[%emt 0:00:30]} 27. Bg4 {[%emt 0:00:30]} e5 {[%emt 0:00:30]} 28. Rf3 {[%emt 0:00:30]} Rxf3 {[%emt 0:00:30]} 29. Bxf3 {[%emt 0:00:30]} e4 {[%emt 0:00:30]} 30. Bg4 {[%emt 0:00:30]} Bg6 {[%emt 0:00:30]} 31. Qd4 {[%emt 0:00:30]} Qxd4 {[%emt 0:00:30]} 32. cxd4 {[%emt 0:00:30]} h5 {[%emt 0:00:30]} 33. Bh3 {[%emt 0:00:30]} Be8 {[%emt 0:00:30]} 34. Be6+ {[%emt 0:00:30]} Kf8 {[%emt 0:00:30]} 35. Re3 {[%emt 0:00:30]} Ke7 {[%emt 0:00:30]} 36. Bh3 {[%emt 0:00:30]} g5 {[%emt 0:00:30]} 37. f3 {[%emt 0:00:30]} Bg6 {[%emt 0:00:30]} 38. Rc3 {[%emt 0:00:30]} Kd6 {[%emt 0:00:30]} 39. Bc8 {[%emt 0:00:30]} b6 {[%emt 0:00:30]} 40. Bxa6 {[%emt 0:00:30]} Be8 {[%emt 0:00:30]} 41. fxe4 {[%emt 0:30:30]} dxe4 {[%emt 0:30:30]} 42. Bb7 {[%emt 0:00:30]} Ke6 {[%emt 0:00:30]} 43. Rb3 {[%emt 0:00:30]} Rxd4 {[%emt 0:00:30]} 44. Rxb6+ {[%emt 0:00:30]} Ke5 {[%emt 0:00:30]} 45. Kf2 {[%emt 0:00:30]} h4 {[%emt 0:00:30]} 46. Bc8 {[%emt 0:00:30]} Rd2+ {[%emt 0:00:30]} 47. Ke3 {[%emt 0:00:30]} Rd3+ {[%emt 0:00:30]} 48. Kf2 {[%emt 0:00:30]} Bh5 {[%emt 0:00:30]} 49. Re6+ {[%emt 0:00:30]} Kd5 {[%emt 0:00:30]} 50. Re7 {[%emt 0:00:30]} Rd2+ {[%emt 0:00:30]} 51. Kf1 {[%emt 0:00:30]} Kd4 {[%emt 0:00:30]} 52. g4 {[%emt 0:00:30]} hxg3 {[%emt 0:00:30]} 53. Rd7+ {[%emt 0:00:30]} Ke3 {[%emt 0:00:30]} 54. Rxd2 {[%emt 0:00:30]} Kxd2 {[%emt 0:00:30]} 55. Ba6 {[%emt 0:00:30]} Bf3 {[%emt 0:00:30]} 56. a4 {[%emt 0:00:30]} e3 {[%emt 0:00:30]} 57. b4 {[%emt 0:00:30]} Kc3 {[%emt 0:00:30]} 0-1

[Event "Frauenbundesliga 2024-25"]
[Site "Germany"]
[Date "2024.11.16"]
[Round "1.4"]
[White "Daulyte-Cornette, Deimante"]
[Black "Ter-Avetisjana, Agnesa Stepania"]
[Result "1-0"]
[Annotator "TA"]
[ECO "B12"]
[WhiteElo "2371"]
[BlackElo "2125"]
[PlyCount "55"]
[EventDate "2024.11.06"]
[EventType "team-tourn"]
[EventCountry "GER"]
[SourceTitle "playchess.com"]
[Source "ChessBase"]
[SourceQuality "1"]
[TimeControl "40/5400+30:1800+30"]

{[%evp 11,55,13,7,0,24,16,26,14,51,49,65,61,66,59,87,52,164,156,165,101,170,166,313,327,382,369,387,393,414,418,416,417,383,279,585,566,605,605,1183,1170,1339,1373,1297,1268,29988,29989]} 1. e4 {[%emt 0:00:03]} c6 {[%emt 0:00:42]} 2. d4 {[%emt 0:00:13]} d5 {[%emt 0:00:08]} 3. e5 {[%emt 0:00:11]} Bf5 {[%emt 0:00:09]} 4. h4 {[%emt 0:00:14]} h5 {[%emt 0:00:09]} 5. Bd3 {[%emt 0:00:16]} Bxd3 {[%emt 0:00:08]} 6. Qxd3 {[%emt 0:00:06]} e6 {[%emt 0:00:19]} 7. Bg5 {[%emt 0:00:30]} Qa5+ {[%emt 0:00:29]} 8. Nd2 {[%emt 0:00:47][%cal Bb1d2,Bd2c4,Bc4a5][%mdl 32]} Qa6 {[%emt 0:00:28]} 9. c4 {[%emt 0:01:01]} dxc4 {[%emt 0:04:10]} 10. Nxc4 {[%emt 0:02:53]} Bb4+ {[%emt 0:17:24]} 11. Bd2 {[%emt 0:11:19]} Be7 {[%emt 0:01:58]} 12. Ne2 {[%emt 0:04:30]} Nh6 {[%emt 0:01:02]} 13. Ng3 {[%emt 0:02:33][%cal Oa1c1] White is more active.} b5 {[%emt 0:13:10]} (13... Nd7 $14) 14. Na5 $36 {[%emt 0:08:03][%mdl 2048] White has strong initiative.} Nd7 {[%emt 0:07:02][%cal Bb8d7,Bd7b6,Bb6d5][%mdl 32]} 15. b4 {[%emt 0:11:44]} ({White should try} 15. O-O $18) 15... Rc8 {[%emt 0:06:27]} (15... Rd8 $16) 16. Rc1 $18 {[%emt 0:05:12][%cal Oa2a4]} g6 {[%emt 0:16:50]} (16... Qb6 $142 17. Qe4 (17. Nxh5 Nf5 $11) 17... Nf5) 17. a4 {[%emt 0:15:15][%cal Ba2a4,Ba4b5][%mdl 32]} Nb6 {[%emt 0:14:26]} 18. Rxc6 {[%emt 0:00:45]} (18. Nxc6 Qxa4 19. O-O Nf5 $18) 18... Rxc6 {[%emt 0:00:22]} 19. axb5 {[%emt 0:07:22]} (19. Nxc6 Qxa4 20. O-O Nd5 21. Nxe7 Nxe7) 19... Rc3 {[%emt 0:03:51]} 20. Bxc3 {[%emt 0:00:21]} Qc8 {[%emt 0:00:07]} 21. Nc6 {[%emt 0:00:37]} Nd5 {[%emt 0:01:00]} 22. Bd2 {[%emt 0:00:41]} (22. Nxa7 Qxc3+ 23. Qxc3 Nxc3 $11) 22... Nf5 $2 {[%emt 0:03:10]} (22... Kf8 {is tougher.} 23. O-O (23. Nxa7 Qa8 $18) 23... Bxh4 24. Bxh6+ (24. Nxa7 Qd7 $18) 24... Rxh6) 23. Nxf5 {[%emt 0:05:04]} (23. Nxa7 Qa8 $18) 23... gxf5 {[%emt 0:00:22]} 24. O-O {[%emt 0:07:27][%cal Bh1f1,Bf1a1,Ba1a7][%mdl 32]} ({Less strong is} 24. Nxa7 Qa8 $18) 24... Qb7 {[%emt 0:00:40]} 25. Ra1 {[%emt 0:00:46]} Nc7 {[%emt 0:03:54]} 26. Rxa7 {[%emt 0:00:42]} Qb6 {[%emt 0:00:08] [#]} 27. d5 $1 {[%emt 0:06:24] Black must now prevent d6.} exd5 {[%emt 0:01:29]} (27... Bxh4 28. Be3) 28. Qxf5 {[%emt 0:00:39]} 1-0